[Event "Late-Titled-Tuesday-Blitz-March-12-2024"]
[Site "Chess.com"]
[Date "2024.03.12"]
[Round "6"]
[White "marcodobrikov"]
[Black "ccccvhhhj"]
[Result "0-1"]
[WhiteElo "2591"]
[BlackElo "2473"]
[TimeControl "180+1"]
[EndTime "15:04:53 PDT"]
[Termination "ccccvhhhj won by checkmate"]

1. Nc3 {[%clk 0:02:59.7]} 1... e6 {[%clk 0:02:59.5]} 2. f4 {[%clk 0:02:58]} 2...
f5 {[%clk 0:02:58]} 3. e4 {[%clk 0:02:57.6]} 3... fxe4 {[%clk 0:02:56.4]} 4.
Nxe4 {[%clk 0:02:57.9]} 4... Nf6 {[%clk 0:02:56.6]} 5. Nxf6+ {[%clk 0:02:55.1]}
5... Qxf6 {[%clk 0:02:56.7]} 6. d4 {[%clk 0:02:56]} 6... Nc6 {[%clk 0:02:52]} 7.
Nf3 {[%clk 0:02:55.3]} 7... Be7 {[%clk 0:02:48.3]} 8. Bd3 {[%clk 0:02:54]} 8...
O-O {[%clk 0:02:46.7]} 9. c3 {[%clk 0:02:53.1]} 9... b6 {[%clk 0:02:33.5]} 10.
O-O {[%clk 0:02:52.9]} 10... Bb7 {[%clk 0:02:33.7]} 11. Bd2 {[%clk 0:02:38.6]}
11... a5 {[%clk 0:02:05.1]} 12. Qc2 {[%clk 0:02:32.2]} 12... h6 {[%clk
0:01:59.3]} 13. Rae1 {[%clk 0:02:33.1]} 13... Ba6 {[%clk 0:01:55.6]} 14. Bh7+
{[%clk 0:02:31.9]} 14... Kf7 {[%clk 0:01:40.9]} 15. Ne5+ {[%clk 0:02:05.6]}
15... Ke8 {[%clk 0:01:35.3]} 16. Bg6+ {[%clk 0:01:58.1]} 16... Kd8 {[%clk
0:01:32.2]} 17. Nxc6+ {[%clk 0:01:59]} 17... dxc6 {[%clk 0:01:33.1]} 18. Rf3
{[%clk 0:01:58.7]} 18... Kc8 {[%clk 0:01:20.3]} 19. h3 {[%clk 0:01:52]} 19...
Kb7 {[%clk 0:01:20.5]} 20. Rfe3 {[%clk 0:01:52.1]} 20... Qxf4 {[%clk 0:01:14]}
21. Rxe6 {[%clk 0:01:52.5]} 21... Qf2+ {[%clk 0:01:13.4]} 22. Kh2 {[%clk
0:01:52.8]} 22... Bd6+ {[%clk 0:01:13.4]} 23. Rxd6 {[%clk 0:01:50.2]} 23... cxd6
{[%clk 0:01:14.3]} 24. Re7+ {[%clk 0:01:50.3]} 24... Kb8 {[%clk 0:01:09.2]} 25.
Qe4 {[%clk 0:01:48.7]} 25... Bb7 {[%clk 0:01:07.2]} 26. Be3 {[%clk 0:01:43.3]}
26... Qf6 {[%clk 0:01:06.7]} 27. d5 {[%clk 0:01:33.4]} 27... cxd5 {[%clk
0:00:51.4]} 28. Re8+ {[%clk 0:01:16.2]} 28... Rxe8 {[%clk 0:00:41.9]} 29. Qxe8+
{[%clk 0:01:17.1]} 29... Ka7 {[%clk 0:00:42.8]} 30. Qb5 {[%clk 0:01:16.3]} 30...
Qe5+ {[%clk 0:00:37.6]} 31. Bf4 {[%clk 0:01:14.9]} 31... Qxf4+ {[%clk
0:00:37.2]} 32. Kh1 {[%clk 0:01:15.3]} 32... Rf8 {[%clk 0:00:27]} 33. Bd3 {[%clk
0:01:14.2]} 33... Qc1+ {[%clk 0:00:23.2]} 34. Kh2 {[%clk 0:01:14.3]} 34... Qf4+
{[%clk 0:00:24]} 35. Kh1 {[%clk 0:01:14.5]} 35... Qe3 {[%clk 0:00:20.3]} 36. b4
{[%clk 0:01:13.4]} 36... a4 {[%clk 0:00:14.1]} 37. Qxa4+ {[%clk 0:01:13]} 37...
Kb8 {[%clk 0:00:14.8]} 38. Qb5 {[%clk 0:01:07.2]} 38... d4 {[%clk 0:00:12.8]}
39. Qxb6 {[%clk 0:01:04.8]} 39... Qxh3+ {[%clk 0:00:11.6]} 40. Kg1 {[%clk
0:01:03.2]} 40... Qxg2# {[%clk 0:00:12.2]} 0-1

[Event "Late-Titled-Tuesday-Blitz-March-12-2024"]
[Site "Chess.com"]
[Date "2024.03.12"]
[Round "6"]
[White "Zampronha1971"]
[Black "TigrVShlyape"]
[Result "0-1"]
[WhiteElo "2342"]
[BlackElo "2889"]
[TimeControl "180+1"]
[EndTime "15:04:54 PDT"]
[Termination "TigrVShlyape won by resignation"]

1. e4 {[%clk 0:03:00.9]} 1... e5 {[%clk 0:02:58.7]} 2. Nf3 {[%clk 0:03:01.4]}
2... Nc6 {[%clk 0:02:58.2]} 3. d4 {[%clk 0:03:02.3]} 3... exd4 {[%clk
0:02:57.6]} 4. Nxd4 {[%clk 0:03:03.2]} 4... Bc5 {[%clk 0:02:56.9]} 5. Be3 {[%clk
0:03:02.4]} 5... Qf6 {[%clk 0:02:56.4]} 6. c3 {[%clk 0:03:02.7]} 6... Nge7
{[%clk 0:02:56.5]} 7. Bc4 {[%clk 0:03:02.9]} 7... Bb6 {[%clk 0:02:20.5]} 8. O-O
{[%clk 0:02:59.8]} 8... O-O {[%clk 0:02:17.6]} 9. Na3 {[%clk 0:02:47.1]} 9...
Qg6 {[%clk 0:02:12.4]} 10. Nxc6 {[%clk 0:02:41.6]} 10... bxc6 {[%clk 0:02:10.7]}
11. Bxb6 {[%clk 0:02:19.9]} 11... axb6 {[%clk 0:02:09]} 12. Re1 {[%clk
0:02:20.3]} 12... d6 {[%clk 0:02:05.1]} 13. Nc2 {[%clk 0:02:16.6]} 13... Kh8
{[%clk 0:02:02]} 14. Qd2 {[%clk 0:02:03.7]} 14... Be6 {[%clk 0:02:00.2]} 15. Ne3
{[%clk 0:01:54.9]} 15... Qxe4 {[%clk 0:01:51.9]} 16. Bxe6 {[%clk 0:01:05]} 16...
fxe6 {[%clk 0:01:50.7]} 17. Nc2 {[%clk 0:00:58.1]} 17... Qg6 {[%clk 0:01:46.8]}
18. a3 {[%clk 0:00:45.8]} 18... e5 {[%clk 0:01:45.8]} 19. f3 {[%clk 0:00:41.4]}
19... Nd5 {[%clk 0:01:45]} 20. Nb4 {[%clk 0:00:39.5]} 20... Ne7 {[%clk 0:01:16]}
21. Qe2 {[%clk 0:00:34.3]} 21... c5 {[%clk 0:01:13.9]} 22. Nc2 {[%clk
0:00:32.3]} 22... Nd5 {[%clk 0:01:13]} 23. Qe4 {[%clk 0:00:29.3]} 23... Qe6
{[%clk 0:01:02.9]} 24. Rad1 {[%clk 0:00:25.4]} 24... Nf4 {[%clk 0:01:00.9]} 25.
c4 {[%clk 0:00:20.5]} 25... Rae8 {[%clk 0:00:54.4]} 26. Ne3 {[%clk 0:00:20.9]}
26... Qf7 {[%clk 0:00:48.5]} 27. Nd5 {[%clk 0:00:20.3]} 27... Ne6 {[%clk
0:00:45.8]} 28. b4 {[%clk 0:00:18.1]} 28... g5 {[%clk 0:00:40.2]} 29. Qe3 {[%clk
0:00:15.4]} 29... Qg7 {[%clk 0:00:39.3]} 30. Qe4 {[%clk 0:00:15.2]} 30... Nf4
{[%clk 0:00:33.3]} 31. Qd4 {[%clk 0:00:14.4]} 0-1

[Event "Late-Titled-Tuesday-Blitz-March-12-2024"]
[Site "Chess.com"]
[Date "2024.03.12"]
[Round "6"]
[White "chessamical"]
[Black "PapaieDudu"]
[Result "0-1"]
[WhiteElo "2218"]
[BlackElo "2436"]
[TimeControl "180+1"]
[EndTime "15:05:01 PDT"]
[Termination "PapaieDudu won by checkmate"]

1. d4 {[%clk 0:02:59.1]} 1... d5 {[%clk 0:03:00.4]} 2. Bf4 {[%clk 0:02:56.1]}
2... Nf6 {[%clk 0:03:00.6]} 3. e3 {[%clk 0:02:56.3]} 3... e6 {[%clk 0:03:00.3]}
4. Nf3 {[%clk 0:02:56.7]} 4... Bd6 {[%clk 0:03:01.2]} 5. Nbd2 {[%clk 0:02:53.2]}
5... O-O {[%clk 0:03:00.9]} 6. Ne5 {[%clk 0:02:53.1]} 6... c5 {[%clk 0:03:01.4]}
7. c3 {[%clk 0:02:52.8]} 7... Nc6 {[%clk 0:03:01.6]} 8. Bd3 {[%clk 0:02:49.7]}
8... cxd4 {[%clk 0:02:58.3]} 9. exd4 {[%clk 0:02:48.9]} 9... Qc7 {[%clk
0:02:56.6]} 10. Ndf3 {[%clk 0:02:47.8]} 10... Rd8 {[%clk 0:02:56.5]} 11. Qe2
{[%clk 0:02:42]} 11... b6 {[%clk 0:02:54.7]} 12. Ng5 {[%clk 0:02:10.2]} 12...
Rf8 {[%clk 0:02:40.5]} 13. h4 {[%clk 0:02:09.1]} 13... h6 {[%clk 0:02:35.9]} 14.
Rc1 {[%clk 0:01:41]} 14... Bb7 {[%clk 0:02:25.9]} 15. Rh3 {[%clk 0:01:33.8]}
15... Rac8 {[%clk 0:02:21.6]} 16. Rg3 {[%clk 0:01:17.7]} 16... Bxe5 {[%clk
0:01:58.9]} 17. dxe5 {[%clk 0:01:15.9]} 17... hxg5 {[%clk 0:01:55.1]} 18. hxg5
{[%clk 0:01:10.9]} 18... Ne4 {[%clk 0:01:54]} 19. Bxe4 {[%clk 0:01:01.1]} 19...
dxe4 {[%clk 0:01:54.9]} 20. Qh5 {[%clk 0:00:58.3]} 20... Rfd8 {[%clk 0:01:34.7]}
21. Rh3 {[%clk 0:00:56.2]} 21... Kf8 {[%clk 0:01:26.2]} 22. Qh8+ {[%clk
0:00:49.3]} 22... Ke7 {[%clk 0:01:26.8]} 23. Qxg7 {[%clk 0:00:49.9]} 23... Rg8
{[%clk 0:01:25.6]} 24. Qf6+ {[%clk 0:00:49.3]} 24... Ke8 {[%clk 0:01:26.3]} 25.
Rh8 {[%clk 0:00:29.9]} 25... Ne7 {[%clk 0:01:17.8]} 26. g6 {[%clk 0:00:23.2]}
26... fxg6 {[%clk 0:01:15.2]} 27. Bg5 {[%clk 0:00:14.5]} 27... Rxh8 {[%clk
0:01:13.3]} 28. Qxh8+ {[%clk 0:00:14.3]} 28... Kd7 {[%clk 0:01:13.5]} 29. Qg7
{[%clk 0:00:12.1]} 29... Re8 {[%clk 0:01:10.3]} 30. Rd1+ {[%clk 0:00:11.5]}
30... Bd5 {[%clk 0:01:11]} 31. b3 {[%clk 0:00:06.5]} 31... Qxc3+ {[%clk
0:01:10.9]} 32. Kf1 {[%clk 0:00:06.4]} 32... Qc2 {[%clk 0:01:08]} 33. Rc1 {[%clk
0:00:04.9]} 33... Qd3+ {[%clk 0:01:06.6]} 34. Kg1 {[%clk 0:00:04.3]} 34... e3
{[%clk 0:00:49.7]} 35. Bxe3 {[%clk 0:00:03.2]} 35... Qe4 {[%clk 0:00:49.6]} 36.
Qf6 {[%clk 0:00:01.2]} 36... Qxg2# {[%clk 0:00:49.9]} 0-1

[Event "Late-Titled-Tuesday-Blitz-March-12-2024"]
[Site "Chess.com"]
[Date "2024.03.12"]
[Round "6"]
[White "GilbertoHernandezAmura"]
[Black "jinxy2009"]
[Result "0-1"]
[WhiteElo "2440"]
[BlackElo "2237"]
[TimeControl "180+1"]
[EndTime "15:05:02 PDT"]
[Termination "jinxy2009 won by resignation"]

1. c4 {[%clk 0:03:00.9]} 1... g6 {[%clk 0:02:58.1]} 2. g3 {[%clk 0:03:00.4]}
2... Nf6 {[%clk 0:02:55.2]} 3. Bg2 {[%clk 0:03:00.8]} 3... Bg7 {[%clk
0:02:53.7]} 4. Nc3 {[%clk 0:02:59.9]} 4... c5 {[%clk 0:02:53.8]} 5. d3 {[%clk
0:02:50.7]} 5... O-O {[%clk 0:02:53.3]} 6. Nf3 {[%clk 0:02:51]} 6... Nc6 {[%clk
0:02:47]} 7. O-O {[%clk 0:02:50.1]} 7... d5 {[%clk 0:02:46.9]} 8. Nd2 {[%clk
0:02:42.2]} 8... d4 {[%clk 0:02:43.7]} 9. Nce4 {[%clk 0:02:42.1]} 9... Nd7
{[%clk 0:02:39.1]} 10. g4 {[%clk 0:02:33.4]} 10... e5 {[%clk 0:02:32.5]} 11. g5
{[%clk 0:02:23.6]} 11... Qe7 {[%clk 0:02:25.7]} 12. a3 {[%clk 0:02:17.9]} 12...
f5 {[%clk 0:02:25.1]} 13. gxf6 {[%clk 0:02:18.1]} 13... Nxf6 {[%clk 0:02:25.5]}
14. Nxf6+ {[%clk 0:02:17.8]} 14... Bxf6 {[%clk 0:02:24.1]} 15. Ne4 {[%clk
0:02:18.2]} 15... Bg7 {[%clk 0:02:24.3]} 16. Bg5 {[%clk 0:02:17.3]} 16... Qc7
{[%clk 0:02:04.4]} 17. Nxc5 {[%clk 0:02:12.7]} 17... h6 {[%clk 0:02:03.6]} 18.
Bh4 {[%clk 0:02:03.9]} 18... g5 {[%clk 0:01:48.3]} 19. Bg3 {[%clk 0:02:03.6]}
19... Qe7 {[%clk 0:01:43.3]} 20. b4 {[%clk 0:01:59.6]} 20... Bd7 {[%clk
0:01:40]} 21. Nxd7 {[%clk 0:01:56.5]} 21... Qxd7 {[%clk 0:01:39.7]} 22. c5
{[%clk 0:01:53.1]} 22... Ne7 {[%clk 0:01:39.2]} 23. Qb3+ {[%clk 0:01:52]} 23...
Kh7 {[%clk 0:01:39]} 24. b5 {[%clk 0:01:50]} 24... h5 {[%clk 0:01:36.9]} 25. h4
{[%clk 0:01:41.4]} 25... gxh4 {[%clk 0:01:31.8]} 26. Bxh4 {[%clk 0:01:40.4]}
26... Ng6 {[%clk 0:01:26.6]} 27. Bg3 {[%clk 0:01:35.7]} 27... h4 {[%clk
0:01:26.5]} 28. Bh2 {[%clk 0:01:11.4]} 28... Qg4 {[%clk 0:01:23.7]} 29. Kh1
{[%clk 0:01:06.5]} 29... h3 {[%clk 0:01:20.3]} 30. Bxb7 {[%clk 0:01:06.2]} 30...
Rab8 {[%clk 0:01:03.3]} 31. Be4 {[%clk 0:01:05.7]} 31... Qxe2 {[%clk 0:00:41.9]}
32. Rg1 {[%clk 0:00:59.6]} 32... Rxf2 {[%clk 0:00:36]} 33. Bxg6+ {[%clk
0:00:49.5]} 33... Kh8 {[%clk 0:00:30.8]} 34. Bg3 {[%clk 0:00:16.1]} 34... Qf3+
{[%clk 0:00:29.4]} 0-1

[Event "Late-Titled-Tuesday-Blitz-March-12-2024"]
[Site "Chess.com"]
[Date "2024.03.12"]
[Round "6"]
[White "AryanTari"]
[Black "NelsonLinda"]
[Result "0-1"]
[WhiteElo "2905"]
[BlackElo "2643"]
[TimeControl "180+1"]
[EndTime "15:05:03 PDT"]
[Termination "NelsonLinda won by resignation"]

1. a3 {[%clk 0:02:47.9]} 1... g6 {[%clk 0:02:56.2]} 2. h4 {[%clk 0:02:46.4]}
2... Nf6 {[%clk 0:02:54.4]} 3. e4 {[%clk 0:02:36]} 3... Nxe4 {[%clk 0:02:52.4]}
4. h5 {[%clk 0:02:36.4]} 4... Nf6 {[%clk 0:02:46.1]} 5. hxg6 {[%clk 0:02:11.1]}
5... fxg6 {[%clk 0:02:47]} 6. d4 {[%clk 0:02:11.1]} 6... Bg7 {[%clk 0:02:42.8]}
7. Nf3 {[%clk 0:02:10.9]} 7... b6 {[%clk 0:02:36.4]} 8. Bd3 {[%clk 0:02:06.6]}
8... Bb7 {[%clk 0:02:34]} 9. Bh6 {[%clk 0:02:04.5]} 9... Rg8 {[%clk 0:02:25.9]}
10. Nc3 {[%clk 0:01:57.2]} 10... e6 {[%clk 0:02:22.4]} 11. Bg5 {[%clk
0:01:51.1]} 11... Qe7 {[%clk 0:02:15.1]} 12. Rxh7 {[%clk 0:01:50.1]} 12... Qf8
{[%clk 0:01:56.4]} 13. Bxg6+ {[%clk 0:01:48.1]} 13... Kd8 {[%clk 0:01:56.7]} 14.
d5 {[%clk 0:01:38.3]} 14... Kc8 {[%clk 0:01:25.3]} 15. dxe6 {[%clk 0:01:36.6]}
15... Nxh7 {[%clk 0:01:11.9]} 16. e7 {[%clk 0:01:36.5]} 16... Bxc3+ {[%clk
0:01:11.2]} 17. bxc3 {[%clk 0:01:34.7]} 17... Qg7 {[%clk 0:01:09.2]} 18. e8=Q+
{[%clk 0:01:23.5]} 18... Rxe8+ {[%clk 0:01:08.6]} 19. Bxe8 {[%clk 0:01:24.4]}
19... Nxg5 {[%clk 0:01:09.2]} 20. Nxg5 {[%clk 0:01:10.3]} 20... Qxg5 {[%clk
0:01:10.1]} 21. Qe2 {[%clk 0:01:10.3]} 21... Bc6 {[%clk 0:00:35.5]} 22. f3
{[%clk 0:01:03.4]} 22... Kb7 {[%clk 0:00:34]} 23. Rd1 {[%clk 0:00:56.2]} 23...
d6 {[%clk 0:00:34.1]} 24. Bf7 {[%clk 0:00:51.8]} 24... Nd7 {[%clk 0:00:32.1]}
25. a4 {[%clk 0:00:43.7]} 25... a5 {[%clk 0:00:31]} 26. Kf2 {[%clk 0:00:40.2]}
26... Rf8 {[%clk 0:00:28]} 27. Be6 {[%clk 0:00:32]} 27... Ne5 {[%clk 0:00:25.1]}
28. Rh1 {[%clk 0:00:30.6]} 28... Nxf3 {[%clk 0:00:16.9]} 29. gxf3 {[%clk
0:00:29.5]} 29... Rxf3+ {[%clk 0:00:17.8]} 30. Qxf3 {[%clk 0:00:24.2]} 30...
Bxf3 {[%clk 0:00:18.7]} 0-1

[Event "Late-Titled-Tuesday-Blitz-March-12-2024"]
[Site "Chess.com"]
[Date "2024.03.12"]
[Round "6"]
[White "kinga2008"]
[Black "enriquebutti"]
[Result "1-0"]
[WhiteElo "2441"]
[BlackElo "2221"]
[TimeControl "180+1"]
[EndTime "15:05:08 PDT"]
[Termination "kinga2008 won by resignation"]

1. e4 {[%clk 0:02:54.5]} 1... e6 {[%clk 0:02:59.6]} 2. Nf3 {[%clk 0:02:52.7]}
2... d5 {[%clk 0:02:58.9]} 3. exd5 {[%clk 0:02:41.9]} 3... exd5 {[%clk
0:02:58.5]} 4. d4 {[%clk 0:02:42.8]} 4... Nc6 {[%clk 0:02:53.6]} 5. c4 {[%clk
0:02:41.1]} 5... Bb4+ {[%clk 0:02:51.6]} 6. Bd2 {[%clk 0:02:40.5]} 6... Bxd2+
{[%clk 0:02:50.5]} 7. Qxd2 {[%clk 0:02:40]} 7... Nge7 {[%clk 0:02:49.8]} 8. Nc3
{[%clk 0:02:36.9]} 8... O-O {[%clk 0:02:48.8]} 9. Be2 {[%clk 0:02:29.6]} 9...
dxc4 {[%clk 0:02:47.1]} 10. Bxc4 {[%clk 0:02:29.2]} 10... Bg4 {[%clk 0:02:46.3]}
11. d5 {[%clk 0:02:22.6]} 11... Bxf3 {[%clk 0:02:44]} 12. gxf3 {[%clk
0:02:21.6]} 12... Ne5 {[%clk 0:02:43.6]} 13. Be2 {[%clk 0:02:20.6]} 13... N5g6
{[%clk 0:02:33.9]} 14. f4 {[%clk 0:02:11.7]} 14... Qd6 {[%clk 0:02:32.3]} 15.
O-O-O {[%clk 0:02:07.6]} 15... Qxf4 {[%clk 0:02:31.1]} 16. h4 {[%clk 0:02:03.3]}
16... Qxd2+ {[%clk 0:02:27.9]} 17. Rxd2 {[%clk 0:02:02.3]} 17... Nf4 {[%clk
0:02:27]} 18. Bf3 {[%clk 0:01:57.6]} 18... Rad8 {[%clk 0:02:21.8]} 19. Rd4
{[%clk 0:01:55.1]} 19... Nfg6 {[%clk 0:02:11.1]} 20. h5 {[%clk 0:01:52.1]} 20...
Ne5 {[%clk 0:02:09.2]} 21. Bg2 {[%clk 0:01:46.6]} 21... Nf5 {[%clk 0:02:02.7]}
22. Rd2 {[%clk 0:01:42]} 22... Nd6 {[%clk 0:01:51.1]} 23. f4 {[%clk 0:01:35.5]}
23... Ng4 {[%clk 0:01:47.8]} 24. Bf3 {[%clk 0:01:29.3]} 24... Nf6 {[%clk
0:01:46.6]} 25. h6 {[%clk 0:01:27.2]} 25... g6 {[%clk 0:01:46.3]} 26. Re1 {[%clk
0:01:12.3]} 26... Rfe8 {[%clk 0:01:45.9]} 27. Re5 {[%clk 0:01:11.4]} 27... Nf5
{[%clk 0:01:44]} 28. Rde2 {[%clk 0:01:06.7]} 28... Nxh6 {[%clk 0:01:41.9]} 29.
Nb5 {[%clk 0:00:56.7]} 29... Rxe5 {[%clk 0:01:40.4]} 30. fxe5 {[%clk 0:00:55.6]}
30... Nxd5 {[%clk 0:01:39.7]} 31. Rd2 {[%clk 0:00:48.6]} 31... c6 {[%clk
0:01:37.4]} 32. Nd6 {[%clk 0:00:47.4]} 32... Rd7 {[%clk 0:01:31.5]} 33. Bxd5
{[%clk 0:00:46.7]} 33... cxd5 {[%clk 0:01:30.4]} 34. Rxd5 {[%clk 0:00:46.8]}
34... Nf5 {[%clk 0:01:29.8]} 35. Nxf5 {[%clk 0:00:46.6]} 35... Rxd5 {[%clk
0:01:27.9]} 36. Ne7+ {[%clk 0:00:46.5]} 36... Kf8 {[%clk 0:01:27.2]} 37. Nxd5
{[%clk 0:00:47.4]} 37... Ke8 {[%clk 0:01:27]} 38. Nf6+ {[%clk 0:00:46.9]} 38...
Ke7 {[%clk 0:01:26.9]} 39. Nxh7 {[%clk 0:00:47.8]} 39... Ke6 {[%clk 0:01:26.5]}
40. Ng5+ {[%clk 0:00:48.5]} 40... Kxe5 {[%clk 0:01:26.3]} 41. Nxf7+ {[%clk
0:00:48.9]} 41... Kf4 {[%clk 0:01:26.1]} 42. Kd2 {[%clk 0:00:46.9]} 42... g5
{[%clk 0:01:23.3]} 43. Nd6 {[%clk 0:00:44.6]} 43... g4 {[%clk 0:01:22.6]} 44.
Ke2 {[%clk 0:00:45]} 44... Kg3 {[%clk 0:01:20.4]} 45. Nxb7 {[%clk 0:00:22]}
45... Kh2 {[%clk 0:01:19.7]} 46. Nc5 {[%clk 0:00:22.4]} 46... g3 {[%clk
0:01:19.2]} 47. Nd3 {[%clk 0:00:20.4]} 47... g2 {[%clk 0:01:18.5]} 48. Ne1
{[%clk 0:00:21.1]} 48... g1=Q {[%clk 0:01:12.6]} 49. Nf3+ {[%clk 0:00:21.2]}
49... Kg2 {[%clk 0:01:11.9]} 50. Nxg1 {[%clk 0:00:22.1]} 50... Kxg1 {[%clk
0:01:12]} 51. b4 {[%clk 0:00:22.2]} 51... Kg2 {[%clk 0:01:11.4]} 52. a4 {[%clk
0:00:22]} 1-0

[Event "Late-Titled-Tuesday-Blitz-March-12-2024"]
[Site "Chess.com"]
[Date "2024.03.12"]
[Round "6"]
[White "David_ATM"]
[Black "Redzishchess"]
[Result "1-0"]
[WhiteElo "2394"]
[BlackElo "2513"]
[TimeControl "180+1"]
[EndTime "15:05:10 PDT"]
[Termination "David_ATM won by resignation"]

1. e4 {[%clk 0:03:00.9]} 1... c5 {[%clk 0:02:59.6]} 2. c3 {[%clk 0:03:01.1]}
2... e5 {[%clk 0:02:50.7]} 3. d4 {[%clk 0:03:00.9]} 3... cxd4 {[%clk 0:02:44.7]}
4. cxd4 {[%clk 0:03:01.8]} 4... exd4 {[%clk 0:02:45.3]} 5. Ne2 {[%clk
0:02:56.1]} 5... Nc6 {[%clk 0:02:43.2]} 6. Nxd4 {[%clk 0:02:56.1]} 6... Nf6
{[%clk 0:02:36.9]} 7. Nc3 {[%clk 0:02:52.9]} 7... Bc5 {[%clk 0:02:33.1]} 8. Nxc6
{[%clk 0:02:51.7]} 8... bxc6 {[%clk 0:02:26.2]} 9. Bd3 {[%clk 0:02:42.1]} 9...
O-O {[%clk 0:02:23.7]} 10. O-O {[%clk 0:02:41.2]} 10... d5 {[%clk 0:02:17.6]}
11. exd5 {[%clk 0:02:41]} 11... Bg4 {[%clk 0:02:04.1]} 12. Qc2 {[%clk
0:02:38.4]} 12... cxd5 {[%clk 0:01:59.8]} 13. Bg5 {[%clk 0:02:35.4]} 13... Rc8
{[%clk 0:01:35.2]} 14. Bxh7+ {[%clk 0:02:23.2]} 14... Kh8 {[%clk 0:01:35.6]} 15.
Bf5 {[%clk 0:02:23.8]} 15... Rc6 {[%clk 0:00:58.1]} 16. Bxg4 {[%clk 0:01:50.9]}
16... d4 {[%clk 0:00:52.8]} 17. Ne4 {[%clk 0:01:45.8]} 17... d3 {[%clk 0:00:53]}
18. Qa4 {[%clk 0:01:31.9]} 18... Qd5 {[%clk 0:00:38.6]} 19. Bxf6 {[%clk
0:01:25.2]} 19... gxf6 {[%clk 0:00:37.7]} 20. Bf3 {[%clk 0:01:19.5]} 20... Rd6
{[%clk 0:00:27.2]} 21. Nxd6 {[%clk 0:01:00.1]} 21... Qxd6 {[%clk 0:00:28.1]} 22.
Qh4+ {[%clk 0:00:59.2]} 22... Kg7 {[%clk 0:00:28.8]} 23. Qg4+ {[%clk 0:00:59.6]}
23... Kh8 {[%clk 0:00:27.6]} 24. Qh5+ {[%clk 0:00:58.7]} 24... Kg7 {[%clk
0:00:27.6]} 25. Qg4+ {[%clk 0:00:56]} 25... Kh8 {[%clk 0:00:27.3]} 26. Qh3+
{[%clk 0:00:34.9]} 26... Kg7 {[%clk 0:00:26.1]} 27. Qg3+ {[%clk 0:00:35.8]}
27... Kh8 {[%clk 0:00:25.8]} 28. Qxd6 {[%clk 0:00:35.4]} 28... Bxd6 {[%clk
0:00:26.7]} 29. Rad1 {[%clk 0:00:35]} 29... Be5 {[%clk 0:00:27.6]} 30. Rxd3
{[%clk 0:00:34.6]} 30... Rg8 {[%clk 0:00:28.5]} 31. g3 {[%clk 0:00:34]} 31...
Kg7 {[%clk 0:00:28.6]} 32. b3 {[%clk 0:00:33.9]} 32... Rc8 {[%clk 0:00:28.7]}
33. Rfd1 {[%clk 0:00:33.9]} 33... Rc2 {[%clk 0:00:28.8]} 34. R3d2 {[%clk
0:00:34.4]} 34... Rc3 {[%clk 0:00:28.8]} 35. Kg2 {[%clk 0:00:34.7]} 35... a5
{[%clk 0:00:28.4]} 36. Re2 {[%clk 0:00:32]} 36... Bc7 {[%clk 0:00:26]} 37. Rb1
{[%clk 0:00:32]} 37... Kg6 {[%clk 0:00:25.4]} 38. a3 {[%clk 0:00:32.1]} 38...
Bd6 {[%clk 0:00:24.8]} 39. b4 {[%clk 0:00:32.6]} 39... Rxa3 {[%clk 0:00:24.9]}
40. b5 {[%clk 0:00:33.3]} 40... Bb4 {[%clk 0:00:24]} 41. b6 {[%clk 0:00:32.9]}
41... Rd3 {[%clk 0:00:23.9]} 42. b7 {[%clk 0:00:32.8]} 42... Rd8 {[%clk
0:00:24.5]} 43. Rc2 {[%clk 0:00:32.1]} 1-0